bitfinex/quotes_ETHUSD_20250810
["timestamp","ask_amount","ask_price","bid_price","bid_amount"]
[1754841203738,3.662,4221.7,4221.6,4.07172858]
[1754841204127,0.002,4222.2,4222.1,2.36848961]
[1754841204461,3.664,4222.2,4222.1,2.84219507]
[1754841204659,3.664,4222.2,4222.1,2.96059507]
[1754841205350,3.664,4222.2,4222.1,2.48688961]
[1754841207071,0.002,4222.2,4222.1,3.43318961]
[1754841208338,0.002,4222.2,4222.1,2.48688961]
[1754841211874,0.9103,4222.2,4222.1,0.1184]
[1754841213664,1.36803,4222.2,4220.8,2.36921285]
[1754841213895,0.9083,4222.1,4221.9,0.1184]
[1754841214099,3.668,4222.0,4221.9,0.1184]
[1754841214264,4.5763,4222.0,4221.9,0.1184]
[1754841215368,0.002,4222.2,4221.9,0.1184]
[1754841215570,3.668,4222.1,4221.9,0.1184]
[1754841215758,3.667,4222.0,4221.9,0.1184]
[1754841215952,0.002,4222.2,4222.0,2.36853922]
[1754841216184,3.667,4222.1,4222.0,2.36853922]
[1754841216364,3.667,4222.1,4221.9,2.48698723]
[1754841216971,4.0968,4222.1,4221.9,2.48698723]
[1754841217170,0.002,4222.2,4221.9,2.48699944]
[1754841217387,3.666,4222.1,4222.0,0.96998545]
[1754841217597,0.002,4222.2,4222.1,2.36848961]
[1754841217756,0.002,4222.2,4222.1,2.48688961]
[1754841218104,0.002,4222.2,4222.1,3.43318961]
[1754841218282,1e-08,4222.2,4222.1,4.27509521]
[1754841219072,1e-08,4222.3,4222.2,2.36843351]
[1754841219394,1e-08,4222.3,4222.2,3.31473351]
[1754841220073,1e-08,4222.3,4222.2,3.29644151]
[1754841220900,1e-08,4222.3,4222.2,3.39128751]
[1754841221105,1e-08,4222.3,4222.2,4.45476578]
[1754841222064,0.002,4222.7,4222.6,2.36820916]
[1754841222259,0.002,4222.7,4222.6,2.48660916]
[1754841222491,0.002,4222.7,4222.6,3.43290916]
[1754841222896,0.002,4222.7,4222.6,3.45659125]
[1754841223058,0.002,4222.7,4222.6,4.38189682]
[1754841224094,0.002,4223.1,4223.0,2.36798484]
[1754841224399,1e-08,4223.1,4223.0,9.05466468]
[1754841224703,1e-08,4223.1,4223.0,9.97728484]
[1754841225107,1e-08,4223.1,4223.0,10.09568484]
[1754841225327,1e-08,4223.1,4223.0,11.57887833]
[1754841226100,0.002,4223.5,4223.0,11.57887833]
[1754841226101,1e-08,4223.3,4223.2,2.9178727]
[1754841226389,1e-08,4223.3,4223.2,5.9178727]
[1754841226593,1e-08,4223.5,4223.4,2.36776057]
[1754841226894,1e-08,4223.7,4223.6,2.36764845]
[1754841227261,1e-08,4223.7,4223.6,3.31394845]
[1754841228073,1e-08,4223.7,4223.6,6.97694845]
[1754841228675,1e-08,4223.7,4223.6,9.97694845]
[1754841228876,1e-08,4223.7,4223.6,11.31559098]
[1754841229078,1e-08,4223.9,4223.8,2.36753634]
[1754841229275,1e-08,4223.9,4223.8,6.14693634]
[1754841229481,1e-08,4223.9,4223.8,7.10443634]
[1754841229680,0.042,4224.9,4224.5,2.36714404]
[1754841229978,0.042,4224.9,4224.5,2.95898041]
[1754841232777,0.042,4224.9,4224.5,3.45808041]
[1754841232981,0.042,4224.9,4224.5,2.95898041]
[1754841235194,0.042,4224.9,4224.5,3.45808041]
[1754841235710,0.042,4224.9,4224.5,2.95898041]
[1754841238085,0.042,4224.9,4224.5,3.45808041]
[1754841238610,0.042,4224.9,4224.5,6.91648041]
[1754841238814,0.042,4224.9,4224.5,7.01127041]
[1754841240818,0.002,4225.0,4224.5,7.01127041]
[1754841240819,0.002,4225.0,4224.9,2.36691992]
[1754841240995,0.002,4225.0,4224.9,6.13731992]
[1754841241403,0.002,4225.0,4224.9,6.13631992]
[1754841242819,1e-08,4225.3,4225.0,5.3668639]
[1754841243010,1e-08,4225.3,4225.1,7.22466807]
[1754841243203,1e-08,4225.3,4225.2,1.20768519]
[1754841243504,1e-08,4225.3,4225.2,7.65033705]
[1754841243704,1e-08,4225.3,4225.2,8.20033705]
[1754841244218,1e-08,4225.3,4225.2,7.24283705]
[1754841244409,2.36570365,4227.1,4226.3,2.36612465]
[1754841244609,2.36570365,4227.1,4227.0,0.1184]
[1754841244915,3.29610365,4227.1,4227.0,0.1184]
[1754841247421,0.9304,4227.1,4227.0,0.1184]
[1754841248915,3.29608806,4227.1,4227.0,0.1184]
[1754841249107,0.9304,4227.1,4227.0,0.1184]
[1754841250237,3.29608806,4227.1,4227.0,0.1184]
[1754841251008,0.9304,4227.1,4227.0,0.1184]
[1754841251325,4.5774,4227.1,4227.0,0.1184]
[1754841251828,0.9304,4227.1,4227.0,0.1184]
[1754841251996,4.5774,4227.1,4227.0,0.1184]
[1754841252196,0.9304,4227.1,4227.0,0.1184]
[1754841252397,4.5774,4227.1,4227.0,0.1184]
[1754841253301,6.94508806,4227.1,4227.0,0.1184]
[1754841253529,4.5794,4227.1,4227.0,0.1184]
[1754841253832,6.94508806,4227.1,4227.0,0.1184]
[1754841254213,4.5794,4227.1,4227.0,0.1184]
[1754841254407,6.94508806,4227.1,4227.0,0.1184]
[1754841254809,7.87654973,4227.1,4227.0,0.1184]
[1754841255451,2.36593666,4226.7,4225.3,2.36669585]
[1754841255735,6.94337502,4226.6,4226.4,0.1184]
[1754841255937,4.5774,4226.6,4226.4,0.1184]
[1754841256107,0.9304,4226.5,4226.4,0.1184]
[1754841256930,3.29642389,4226.5,4226.4,0.1184]
[1754841257337,0.9304,4226.5,4225.6,2.36652606]
[1754841257512,0.4721,4226.4,4226.2,0.1184]
[1754841257837,2.36613586,4226.3,4226.2,0.1184]
[1754841258338,0.9523,4226.3,4226.2,0.1184]
[1754841258935,3.31843586,4226.3,4226.2,0.1184]
[1754841260143,0.55,4226.2,4225.0,0.001]
[1754841260361,2.36669585,4225.3,4225.2,0.1184]
[1754841260562,2.91680788,4225.1,4225.0,0.001]
[1754841261050,0.50917346,4225.2,4225.0,0.001]
[1754841261256,3.647,4225.1,4225.0,0.001]
[1754841261601,3.647,4225.1,4225.0,0.24964191]
[1754841261845,3.647,4225.1,4225.0,0.36804191]
[1754841262647,3.647,4225.1,4225.0,2.73490581]
[1754841262859,3.647,4225.1,4225.0,0.36804191]
[1754841263059,3.647,4225.1,4225.0,0.1194]
[1754841263855,4.5993,4225.1,4225.0,0.1194]
[1754841264860,0.4721,4225.4,4225.0,0.1194]
[1754841265061,4.1191,4225.3,4225.0,0.1194]
[1754841266348,0.4721,4225.2,4225.0,0.1194]
[1754841267185,3.647,4225.3,4225.0,0.1194]
[1754841267674,4.1191,4225.3,4225.0,0.1194]
[1754841267978,4.1191,4225.3,4225.0,2.48625766]
[1754841268179,3.647,4225.2,4225.1,2.36680788]
[1754841268351,0.4721,4225.7,4225.2,2.36673424]
[1754841268674,4.1191,4225.6,4225.2,2.36673424]
[1754841269044,7.1191,4225.6,4225.5,0.1184]
[1754841270769,7.5993,4225.6,4225.5,0.1184]
[1754841271178,9.96582783,4225.6,4225.5,0.1184]
[1754841271350,6.31882783,4225.6,4225.5,0.1184]
[1754841271543,9.96582783,4225.6,4225.5,0.1184]
[1754841272477,6.31882783,4225.6,4225.5,0.1184]
[1754841272678,9.96582783,4225.6,4225.5,0.1184]
[1754841274642,9.96582783,4225.6,4225.5,0.1194]
[1754841275041,9.96582783,4225.6,4225.5,0.001]
[1754841276649,11.60977491,4225.6,4225.5,0.001]
[1754841278586,15.60977491,4225.6,4225.5,0.001]
[1754841279086,11.60977491,4225.6,4225.5,0.001]
[1754841280861,10.63422783,4225.6,4225.5,0.001]
[1754841281276,6.98722783,4225.6,4225.5,0.001]
[1754841281455,10.63422783,4225.6,4225.5,0.001]
[1754841281655,10.51582783,4225.6,4225.5,0.001]
[1754841283291,14.51582783,4225.6,4225.5,0.001]
[1754841285179,14.7369958,4225.6,4225.5,0.001]
[1754841285360,16.96881285,4225.6,4225.5,0.001]
[1754841289271,12.96881285,4225.6,4225.5,0.001]
[1754841290102,8.36951285,4225.6,4225.5,0.001]
[1754841290300,10.29433094,4225.6,4225.5,0.001]
[1754841291784,10.29474303,4225.6,4225.5,0.001]
[1754841292270,14.75914303,4225.6,4225.5,0.001]
[1754841292473,15.22024303,4225.6,4225.5,0.001]
[1754841292675,15.85626214,4225.6,4225.5,0.001]
[1754841293513,15.22024303,4225.6,4225.5,0.001]
[1754841293698,14.71060789,4225.6,4225.5,0.001]
[1754841293896,15.22123951,4225.6,4225.5,0.001]
[1754841299417,15.72123951,4225.6,4225.5,0.001]
[1754841300415,12.35952904,4225.6,4225.5,0.001]
[1754841300602,41.85422216,4225.6,4225.5,0.001]
[1754841300802,42.70261994,4225.6,4225.5,0.001]
[1754841301008,2.91680788,4225.1,4225.0,0.001]
[1754841301210,44.68053349,4225.1,4225.0,0.001]
[1754841301416,46.09296546,4225.1,4225.0,0.001]
[1754841303302,41.36479529,4225.1,4225.0,0.001]
[1754841303509,14.87881956,4225.1,4225.0,0.001]
[1754841303692,14.41441956,4225.1,4225.0,0.001]
[1754841303898,15.05173393,4225.1,4225.0,0.001]
[1754841304623,15.97723393,4225.1,4225.0,0.001]
[1754841304897,15.33991956,4225.1,4225.0,0.001]
[1754841305395,15.51582479,4225.1,4225.0,0.001]
[1754841305802,15.05142479,4225.1,4225.0,0.001]
[1754841306539,7.85061168,4225.1,4225.0,0.001]
[1754841306701,13.86441956,4225.1,4225.0,0.463]
[1754841306899,14.41441956,4225.1,4225.0,0.9013]
[1754841307307,14.41441956,4225.1,4225.0,0.001]
[1754841308099,14.41389833,4225.1,4225.0,0.001]
[1754841308734,12.04709045,4225.1,4225.0,0.001]
[1754841309034,14.41389833,4225.1,4225.0,0.001]
[1754841310230,14.59480037,4225.1,4225.0,0.001]
[1754841310451,15.05920037,4225.1,4225.0,0.001]
[1754841311608,11.41220037,4225.1,4225.0,0.001]
[1754841311809,14.59480037,4225.1,4225.0,0.001]
[1754841313639,15.05920037,4225.1,4225.0,0.001]
[1754841313858,14.59480037,4225.1,4225.0,0.001]
[1754841317746,8.58099249,4225.1,4225.0,0.001]
[1754841317954,4.0,4225.1,4225.0,0.9004]
[1754841318259,7.646,4225.1,4225.0,1.23897259]
[1754841318425,7.646,4225.1,4225.0,0.9004]
[1754841318927,3.646,4225.1,4225.0,0.9004]
[1754841320180,0.51196569,4225.5,4225.0,0.9004]
[1754841320181,2.54195651,4225.3,4225.0,0.4535]
[1754841320331,3.646,4225.2,4225.0,0.4535]
[1754841320756,10.07270311,4225.2,4225.1,0.1184]
[1754841320939,10.27198366,4225.1,4225.0,0.001]
[1754841321247,42.11616325,4225.1,4225.0,0.001]
[1754841322433,41.47915802,4225.1,4225.0,0.001]
[1754841323963,45.61205916,4225.1,4225.0,0.001]
[1754841324961,46.46315355,4225.1,4225.0,0.001]
[1754841325162,46.95730828,4225.1,4225.0,0.001]
[1754841325367,47.29739352,4225.1,4225.0,0.001]
[1754841325769,54.36739352,4225.1,4225.0,0.001]
[1754841326371,58.01339352,4225.1,4225.0,0.001]
[1754841327739,54.36739352,4225.1,4225.0,0.001]
[1754841327935,58.01339352,4225.1,4225.0,0.001]
[1754841328372,58.01334597,4225.1,4225.0,0.001]
[1754841329273,50.59837019,4225.1,4225.0,0.001]
[1754841329465,52.4495758,4225.1,4225.0,0.001]
[1754841330044,52.9173758,4225.1,4225.0,0.001]
[1754841330379,52.4495758,4225.1,4225.0,0.001]
[1754841330569,48.8035758,4225.1,4225.0,0.001]
[1754841330769,52.4495758,4225.1,4225.0,0.001]
[1754841331542,17.41945798,4225.1,4225.0,0.001]
[1754841331768,20.93259591,4225.1,4225.0,0.9004]
[1754841332369,19.11578803,4225.1,4225.0,0.9004]
[1754841332590,11.37738803,4225.1,4225.0,0.9004]
[1754841332747,11.92738803,4225.1,4225.0,0.9004]
[1754841332947,13.74419591,4225.1,4225.0,0.9004]
[1754841333167,14.29419591,4225.1,4225.0,0.001]
[1754841334166,14.29441786,4225.1,4225.0,0.001]
[1754841334791,10.29441786,4225.1,4225.0,0.001]
[1754841335742,7.92760998,4225.1,4225.0,0.9004]
[1754841336051,7.92660998,4225.1,4225.0,0.9004]
[1754841336251,4.15495125,4225.1,4225.0,0.9004]
[1754841336451,4.15495125,4225.1,4225.0,1.34553158]
[1754841336452,3.645,4225.1,4225.0,1.34553158]
[1754841336658,3.645,4225.1,4225.0,1.0188]
[1754841339575,3.645,4225.1,4225.0,3.3856639]
[1754841339880,3.645,4225.1,4225.0,1.0188]
[1754841342965,7.02960788,4225.1,4225.0,0.001]
[1754841343285,10.50550788,4225.1,4225.0,0.001]
[1754841343454,11.0158042,4225.1,4225.0,0.001]
[1754841343653,11.23728981,4225.1,4225.0,0.001]
[1754841344470,10.76138981,4225.1,4225.0,0.001]
[1754841344775,10.29358981,4225.1,4225.0,0.001]
[1754841345088,4.06029831,4225.1,4225.0,0.001]
[1754841345389,0.1184,4225.4,4225.0,0.9004]
[1754841345587,3.644,4225.3,4225.0,2.48621169]
[1754841345805,3.644,4225.3,4225.1,0.8994]
[1754841346283,3.18350575,4225.5,4225.2,0.8994]
[1754841346484,6.644,4225.4,4225.3,0.8994]
[1754841346691,6.644,4225.4,4225.1,2.36680788]
[1754841346893,6.644,4225.4,4225.3,0.1184]
[1754841347282,6.644,4225.4,4225.3,1.0178]
[1754841347585,6.644,4225.4,4225.3,0.5709]
[1754841348093,6.644,4225.4,4225.3,1.006]
[1754841348689,0.002,4225.5,4225.3,1.22497981]
[1754841348880,3.644,4225.4,4225.3,2.82247566]
[1754841349476,3.644,4225.4,4225.3,0.45577981]
[1754841350369,3.644,4225.4,4225.3,0.1184]
[1754841350575,3.644,4225.4,4225.0,0.001]
[1754841350576,0.55,4225.3,4225.0,0.001]
[1754841350771,5.91680788,4225.1,4225.0,0.001]
[1754841351095,40.4170735,4225.1,4225.0,0.001]
[1754841351466,41.3324735,4225.1,4225.0,0.001]
[1754841351791,41.33250275,4225.1,4225.0,0.001]
[1754841351999,45.33250275,4225.1,4225.0,0.001]
[1754841352991,45.97037564,4225.1,4225.0,0.001]
[1754841353301,49.61437564,4225.1,4225.0,0.001]
[1754841354602,49.61437414,4225.1,4225.0,0.001]
[1754841355697,45.61437414,4225.1,4225.0,0.001]
[1754841356368,51.30037414,4225.1,4225.0,0.001]
[1754841356569,51.41588866,4225.1,4225.0,0.001]
[1754841357208,58.48588866,4225.1,4225.0,0.001]
[1754841357565,58.48591419,4225.1,4225.0,0.001]
[1754841358703,62.48591419,4225.1,4225.0,0.001]
[1754841359493,62.48591353,4225.1,4225.0,0.001]
[1754841361582,62.48589608,4225.1,4225.0,0.001]
[1754841361981,0.55,4225.0,4224.6,0.041]
[1754841362181,3.03543197,4224.7,4224.6,0.041]
[1754841362392,15.917088,4224.6,4224.2,0.001]
[1754841362702,37.69682532,4224.6,4224.2,0.001]
[1754841363101,41.69682532,4224.6,4224.2,0.001]
[1754841363300,42.5469267,4224.6,4224.2,0.001]
[1754841363995,2.91725611,4224.3,4224.2,0.001]
[1754841364176,51.63106388,4224.3,4224.2,0.001]
[1754841364377,53.03291179,4224.3,4224.2,0.001]
[1754841364594,52.39558701,4224.3,4224.2,0.001]
[1754841365511,2.36753634,4223.8,4223.7,0.001]
[1754841365688,40.33411888,4223.8,4223.7,0.001]
[1754841365881,42.37273329,4223.8,4223.7,0.001]
[1754841366401,41.73596679,4223.8,4223.7,0.001]
[1754841366581,45.73596679,4223.8,4223.7,0.001]
[1754841367783,49.50494257,4223.8,4223.7,0.001]
[1754841368392,49.28355923,4223.8,4223.7,0.001]
[1754841368598,49.50433247,4223.8,4223.7,0.001]
[1754841369809,49.6225186,4223.8,4223.7,0.001]
[1754841370181,5.91759239,4223.7,4223.6,0.04]
[1754841370382,42.99502596,4223.7,4223.6,0.04]
[1754841371293,43.5613202,4223.7,4223.6,0.04]
[1754841375807,43.6797202,4223.7,4223.6,0.04]
[1754841376122,50.7497202,4223.7,4223.6,0.04]
[1754841377506,49.8343202,4223.7,4223.6,0.04]
[1754841379291,50.2751202,4223.7,4223.6,0.04]
[1754841379599,50.7334202,4223.7,4223.6,0.04]
[1754841381018,50.7334202,4223.7,4223.6,1e-08]
[1754841381019,44.3001867,4223.7,4223.6,1e-08]
[1754841381187,43.6634202,4223.7,4223.6,1e-08]
[1754841381387,44.3001792,4223.7,4223.6,1e-08]
[1754841381588,43.8418792,4223.7,4223.6,1e-08]
[1754841382392,43.62110596,4223.7,4223.6,1e-08]
[1754841382584,43.84223618,4223.7,4223.6,1e-08]
[1754841382791,47.48523618,4223.7,4223.6,1e-08]
[1754841383189,40.78356441,4223.7,4223.6,1e-08]
[1754841383432,44.97656441,4223.7,4223.6,1e-08]
[1754841383931,44.42656441,4223.7,4223.6,1e-08]
[1754841384130,44.97656441,4223.7,4223.6,0.93250001]
[1754841384426,44.97656441,4223.7,4223.6,0.93350001]
[1754841384633,35.41797202,4223.7,4223.6,0.93350001]
[1754841384928,11.12888663,4223.7,4223.6,0.93350001]
[1754841385132,10.57888663,4223.7,4223.6,0.93350001]
[1754841385336,10.57888663,4223.7,4223.1,0.001]
[1754841385337,5.36764845,4223.6,4223.1,0.001]
[1754841385490,6.0362727,4223.2,4223.1,0.001]
[1754841385694,40.41019086,4223.2,4223.1,0.001]
[1754841385891,40.41019086,4223.2,4222.8,0.001]
[1754841385892,5.91804091,4222.9,4222.8,0.001]
[1754841386212,46.73568842,4222.9,4222.8,0.001]
[1754841386409,47.65059414,4222.9,4222.8,0.001]
[1754841386613,51.7833877,4222.9,4222.8,0.001]
[1754841386815,52.28794861,4222.9,4222.8,0.001]
[1754841387010,51.65059414,4222.9,4222.8,0.001]
[1754841387229,52.2879502,4222.9,4222.8,0.001]
[1754841387597,51.65059414,4222.9,4222.8,0.001]
[1754841388024,51.82948205,4222.9,4222.8,0.001]
[1754841388217,51.19229414,4222.9,4222.8,0.001]
[1754841388719,51.65059414,4222.9,4222.8,0.001]
[1754841389251,47.74577599,4222.9,4222.8,0.001]
[1754841389529,47.09283103,4222.9,4222.8,0.9335]
[1754841389699,50.73583103,4222.9,4222.8,0.9335]
[1754841389897,50.73583103,4222.9,4222.8,0.4753]
[1754841390196,50.73583103,4222.9,4222.8,0.001]
[1754841390613,50.73583103,4222.9,4222.3,0.001]
[1754841390614,2.91832133,4222.4,4222.3,0.001]
[1754841390811,9.90093892,4222.4,4222.3,0.001]
[1754841391134,9.56132133,4222.4,4222.3,0.001]
[1754841391500,9.56132133,4222.4,4222.3,0.9335]
[1754841391818,10.0715724,4222.4,4222.3,0.9335]
[1754841392228,10.29307883,4222.4,4222.3,0.001]
[1754841392402,10.29307883,4222.4,4222.3,0.4753]
[1754841392723,10.29307883,4222.4,4222.3,0.9335]
[1754841393431,10.29307883,4222.4,4222.3,0.4753]
[1754841393633,10.29331906,4222.4,4222.3,0.4753]
[1754841394003,10.29331906,4222.4,4222.3,0.9335]
[1754841394331,11.92499773,4222.4,4222.3,0.9335]
[1754841394530,4.28199773,4222.4,4222.3,0.9335]
[1754841394849,0.5104913,4222.8,4222.3,1.26370332]
[1754841395052,5.688,4222.9,4222.7,2.36810887]
[1754841395204,5.688,4222.9,4222.8,3.30059699]
[1754841395534,9.331,4222.9,4222.8,3.41899699]
[1754841395828,9.331,4222.9,4222.8,1.0509]
[1754841396798,5.688,4222.9,4222.8,1.0509]
[1754841397002,9.331,4222.9,4222.8,3.41899699]
[1754841397256,9.331,4222.9,4222.8,1.0509]
[1754841399509,3.643,4222.9,4222.8,1.0509]
[1754841400640,6.56104091,4222.9,4222.8,0.1184]
[1754841400867,0.55,4222.8,4222.6,0.1184]
[1754841401058,3.642,4222.7,4222.6,0.1184]
[1754841401346,9.01015307,4222.7,4222.6,0.1184]
[1754841401757,6.642,4222.7,4222.6,0.5927]
[1754841402121,3.0,4222.7,4222.6,0.5927]
[1754841402321,6.642,4222.7,4222.6,0.5927]
[1754841403230,6.642,4222.7,4222.6,1.0509]
[1754841404031,6.642,4222.7,4222.6,0.5927]
[1754841404232,6.642,4222.7,4222.6,0.1184]
[1754841404846,6.642,4222.7,4222.3,0.001]
[1754841405021,0.02369965,4222.6,4222.4,0.1184]
[1754841405225,6.56026524,4222.5,4222.4,0.1184]
[1754841405454,0.55,4222.4,4222.3,0.001]
[1754841406018,2.91832133,4222.4,4222.3,0.001]
[1754841407128,0.55,4222.4,4222.3,0.001]
[1754841407520,2.91832133,4222.4,4222.3,0.001]
[1754841408458,0.55,4222.4,4222.3,0.001]
[1754841411031,2.36802843,4223.0,4222.3,1.0723]
[1754841411365,6.01004232,4222.9,4222.8,0.1184]
[1754841413073,3.642,4222.9,4222.8,1.0713]
[1754841413567,3.642,4222.9,4222.8,0.6071]
[1754841413872,2.36802732,4223.0,4222.8,0.6071]
[1754841414041,3.642,4222.9,4222.8,0.6071]
[1754841414368,3.642,4222.9,4222.8,1.0713]
[1754841415667,3.642,4222.9,4222.8,0.6071]
[1754841418063,3.642,4222.9,4222.8,0.1184]
[1754841418862,3.642,4222.9,4222.8,0.6071]
[1754841419166,3.642,4222.9,4222.8,0.1184]
[1754841420065,3.642,4222.9,4222.8,1.0713]
[1754841420938,3.642,4222.9,4222.8,3.31914095]
[1754841421133,3.642,4222.9,4222.8,1.41524396]
[1754841421363,3.642,4222.9,4222.8,3.78334095]
[1754841423953,3.642,4222.9,4222.8,1.41524396]
[1754841424171,3.642,4222.9,4222.8,3.78334095]
[1754841425477,3.642,4222.9,4222.8,1.41524396]
[1754841426469,3.642,4222.9,4222.8,3.78334095]
[1754841427645,3.642,4222.9,4222.8,2.83044095]
[1754841427951,3.642,4222.9,4222.8,0.95104396]
[1754841428150,3.642,4222.9,4222.8,1.41524396]
[1754841428681,3.642,4222.9,4222.8,3.31914095]
[1754841428979,3.0,4223.5,4222.9,2.36798991]
[1754841429176,3.64,4223.4,4222.8,3.66494095]
[1754841429365,3.64,4223.4,4222.8,1.29684396]
[1754841429676,3.64,4223.4,4223.3,0.1184]
[1754841430067,4.1057,4223.4,4223.3,0.1184]
[1754841430450,3.64,4223.4,4223.3,0.1184]
[1754841431275,6.47346057,4223.4,4223.3,0.1184]
[1754841431481,2.36792388,4223.2,4221.9,0.9539]
[1754841431658,3.64,4223.1,4223.0,0.1184]
[1754841432179,4.5589,4223.1,4223.0,0.1184]
[1754841433462,6.92682877,4223.1,4223.0,0.1184]
[1754841434775,6.92682877,4223.1,4222.3,0.001]
[1754841434776,5.91832133,4222.4,4222.3,0.001]
[1754841434993,6.64960458,4222.4,4222.3,0.001]
[1754841435307,10.533964,4222.4,4222.3,0.001]
[1754841435467,10.987164,4222.4,4222.3,0.001]
[1754841436487,14.987164,4222.4,4222.3,0.001]
[1754841436997,15.94182262,4222.4,4222.3,0.001]
[1754841437155,45.94182262,4222.4,4222.3,0.001]
[1754841437490,45.94182262,4222.4,4222.3,1e-08]
[1754841437491,46.07452118,4222.4,4222.3,1e-08]
[1754841437787,46.36910503,4222.4,4222.3,1e-08]
[1754841438196,46.07452118,4222.4,4222.3,1e-08]
[1754841438880,42.30182262,4222.4,4222.3,1e-08]
[1754841439081,45.94182262,4222.4,4222.3,1e-08]
[1754841440306,12.30182262,4222.4,4222.3,1e-08]
[1754841440509,15.94182262,4222.4,4222.3,1e-08]
[1754841441166,15.7205573,4222.4,4222.3,1e-08]
[1754841441819,7.64,4222.4,4222.3,1e-08]
[1754841442072,7.64,4222.4,4222.3,0.93660001]
[1754841442266,7.64,4222.4,4222.3,3.30497743]
[1754841442472,7.64,4222.4,4222.3,0.93660001]
[1754841442894,3.64,4222.4,4222.3,0.93660001]
[1754841443095,3.64,4222.4,4222.3,1.03005318]
[1754841443697,3.64,4222.4,4222.3,3.8723306]
[1754841443903,3.64,4222.4,4222.3,1.50395318]
[1754841444218,0.6405344,4223.6,4222.3,0.93660001]
[1754841444416,3.64,4223.5,4223.0,2.36796657]
[1754841444715,3.64,4223.5,4223.1,0.4627]
[1754841445191,3.64,4223.5,4222.9,2.36804016]
[1754841446306,3.64,4223.5,4222.8,2.3680875]
[1754841446510,6.00771647,4223.5,4222.8,2.36809201]
[1754841446697,3.64,4223.5,4222.8,2.36809201]
[1754841446883,3.64,4223.5,4222.9,2.36803]
[1754841447894,3.64,4223.5,4222.8,2.88798126]
[1754841448093,6.00772113,4223.5,4222.8,0.51989991]
[1754841448291,0.55,4223.4,4222.8,0.51989991]
[1754841448501,0.55,4223.4,4222.3,1e-08]
[1754841448502,0.4642,4223.3,4222.7,2.36813507]
[1754841448678,3.64,4223.2,4222.7,2.36813507]
[1754841448878,4.1042,4223.2,4222.7,2.36813507]
[1754841449802,4.1042,4223.2,4222.8,2.36808919]
[1754841450611,3.64,4223.2,4222.8,2.36808919]
[1754841450787,3.64,4223.2,4222.4,3.30486708]
[1754841450988,3.64,4223.2,4222.5,0.33048671]
[1754841451715,3.64,4223.2,4223.1,0.1184]
[1754841452203,4.1042,4223.2,4223.1,0.1184]
[1754841455219,3.64,4223.2,4223.1,0.1184]
[1754841456285,3.639,4223.2,4223.1,2.48632462]
[1754841456510,3.639,4223.2,4223.1,0.1184]
[1754841459717,3.639,4223.2,4223.1,2.48632877]
[1754841459904,3.639,4223.2,4223.1,0.1184]
[1754841460229,0.002,4223.5,4223.1,0.1184]
[1754841460392,0.55,4223.3,4223.1,2.4863022]
[1754841460799,3.638,4223.2,4223.1,2.4863022]
[1754841461021,0.55,4223.4,4223.1,2.4863022]
[1754841461222,3.638,4223.3,4223.1,2.4863022]
[1754841462718,0.002,4223.5,4223.1,2.4863022]
[1754841462918,0.55,4223.3,4223.1,2.4863022]
[1754841463321,0.55,4223.3,4223.1,0.1184]
[1754841463536,1.0142,4223.3,4223.1,0.1184]
[1754841463820,0.55,4223.3,4223.1,0.1184]
[1754841464531,1.0142,4223.3,4223.1,0.1184]
[1754841465025,0.55,4223.3,4223.1,0.1184]
[1754841465335,0.9338,4223.2,4223.1,0.1184]
[1754841467522,4.5718,4223.2,4223.1,0.1184]
[1754841467722,3.638,4223.2,4223.1,0.1184]
[1754841468327,0.552,4223.5,4223.1,0.1184]
[1754841468519,0.55,4223.3,4223.1,0.1184]
[1754841468717,3.638,4223.2,4223.1,0.1184]
[1754841469706,4.1067,4223.2,4223.1,0.1184]
[1754841470440,3.638,4223.2,4223.1,0.1184]
[1754841472429,4.21169965,4223.2,4223.1,0.1184]
[1754841472743,3.55,4223.1,4221.7,0.001]
[1754841473040,0.55,4222.6,4222.2,0.1184]
[1754841473258,0.55,4222.4,4222.2,0.1184]
[1754841473834,1.0187,4222.4,4222.2,0.1184]
[1754841475547,1.4972,4222.4,4222.2,0.1184]
[1754841475757,1.0187,4222.4,4222.2,0.1184]
[1754841478754,0.55,4222.4,4222.2,0.1184]
[1754841479056,3.637,4222.4,4222.3,2.48677467]
[1754841479262,3.637,4222.4,4222.3,3.85900093]
[1754841479629,0.51008789,4223.2,4222.6,2.36816407]
[1754841479825,3.637,4223.1,4223.0,0.1184]
[1754841480429,0.55,4223.2,4223.0,0.1184]
[1754841480623,3.637,4223.1,4223.0,0.1184]
[1754841482364,4.1057,4223.1,4223.0,0.1184]
[1754841483336,0.4687,4223.1,4223.0,0.1184]
[1754841483666,4.1057,4223.1,4223.0,0.1184]
[1754841484162,5.04483392,4223.1,4223.0,0.1184]
[1754841484374,5.52333392,4223.1,4223.0,0.1184]
[1754841484556,4.5842,4223.1,4223.0,0.1184]
[1754841484738,4.1057,4223.1,4223.0,0.1184]
[1754841484938,3.637,4223.1,4223.0,0.1184]
[1754841488038,0.55,4223.2,4223.0,0.1184]
[1754841488547,3.636,4223.1,4223.0,0.1184]
[1754841495758,0.55,4223.2,4223.0,2.48638484]
[1754841495945,3.636,4223.1,4223.0,2.48638484]
[1754841496362,3.636,4223.1,4223.0,0.1184]
[1754841496563,0.002,4223.3,4223.0,0.1184]
[1754841496769,0.002,4223.3,4223.2,2.3678727]
[1754841496969,3.637,4223.3,4223.2,2.3678727]